fUSD/lending_fUSD_20240418
["ID","MTS","AMOUNT","RATE_DAILY","PERIOD"]
[322848012,1713402645233,-1667.260497,0.0002,2]
[322848013,1713402645242,-151.0,0.0002,2]
[322848015,1713402645251,-151.0,0.0002,2]
[322848016,1713402645261,-151.0,0.0002,2]
[322848017,1713402645270,-151.0,0.0002,2]
[322848018,1713402645280,-151.0,0.0002,2]
[322848019,1713402645291,-151.0,0.0002,2]
[322848020,1713402645300,-184.579435,0.0002,2]
[322848022,1713402645309,-294.583452,0.0002,2]
[322848023,1713402645318,-294.583452,0.0002,2]
[322848024,1713402645327,-294.583452,0.0002,2]
[322848025,1713402645337,-294.583452,0.0002,2]
[322848026,1713402645346,-294.583452,0.0002,2]
[322848027,1713402645355,-294.583452,0.0002,2]
[322848028,1713402645364,-294.583452,0.0002,2]
[322848029,1713402645373,-294.583452,0.0002,2]
[322848030,1713402645382,-151.0,0.0002,2]
[322848031,1713402645391,-151.0,0.0002,2]
[322848032,1713402645400,-151.0,0.0002,2]
[322848033,1713402645409,-151.0,0.0002,2]
[322848034,1713402645418,-151.0,0.0002,2]
[322848035,1713402645426,-151.0,0.0002,2]
[322848036,1713402645435,-151.0,0.0002,2]
[322848037,1713402645444,-151.0,0.0002,2]
[322848038,1713402645454,-294.377676,0.0002,2]
[322848039,1713402645463,-248.01312,0.0002,2]
[322848041,1713402645471,-248.01312,0.0002,2]
[322848043,1713402645481,-248.01312,0.0002,2]
[322848045,1713402645490,-248.01312,0.0002,2]
[322848047,1713402645499,-248.01312,0.0002,2]
[322848048,1713402645509,-248.01312,0.0002,2]
[322848049,1713402645519,-248.01312,0.0002,2]
[322848050,1713402645528,-248.01312,0.0002,2]
[322848051,1713402645540,-151.0,0.0002,2]
[322848052,1713402645550,-151.0,0.0002,2]
[322848053,1713402645560,-151.0,0.0002,2]
[322848054,1713402645570,-151.0,0.0002,2]
[322848055,1713402645578,-151.0,0.0002,2]
[322848056,1713402645588,-151.0,0.0002,2]
[322848057,1713402645597,-151.0,0.0002,2]
[322848058,1713402645606,-199.26641,0.0002,2]
[322848059,1713402645616,-213.269198,0.0002,2]
[322848060,1713402645625,-213.269198,0.0002,2]
[322848061,1713402645634,-213.269198,0.0002,2]
[322848062,1713402645643,-213.269198,0.0002,2]
[322848063,1713402645653,-213.269198,0.0002,2]
[322848064,1713402645661,-213.269198,0.0002,2]
[322848065,1713402645671,-213.269198,0.0002,2]
[322848066,1713402645680,-213.269198,0.0002,2]
[322848067,1713402645689,-182.67832,0.0002,2]
[322848068,1713402645699,-182.67832,0.0002,2]
[322848069,1713402645707,-182.67832,0.0002,2]
[322848070,1713402645716,-182.67832,0.0002,2]
[322848071,1713402645726,-182.67832,0.0002,2]
[322848072,1713402645735,-182.67832,0.0002,2]
[322848073,1713402645743,-182.67832,0.0002,2]
[322848074,1713402645753,-182.67832,0.0002,2]
[322848075,1713402645762,-151.0,0.0002,2]
[322848076,1713402645771,-151.0,0.0002,2]
[322848077,1713402645783,-151.0,0.0002,2]
[322848078,1713402645793,-151.0,0.0002,2]
[322848079,1713402645803,-173.761411,0.0002,2]
[322848080,1713402645813,-173.761411,0.0002,2]
[322848081,1713402645822,-173.761411,0.0002,2]
[322848082,1713402645832,-173.761411,0.0002,2]
[322848083,1713402645842,-173.761411,0.0002,2]
[322848084,1713402645852,-173.761411,0.0002,2]
[322848085,1713402645861,-173.761411,0.0002,2]
[322848086,1713402645871,-173.761411,0.0002,2]
[322848087,1713402645881,-189.938224,0.0002,2]
[322848088,1713402645891,-189.938224,0.0002,2]
[322848089,1713402645900,-189.938224,0.0002,2]
[322848090,1713402645912,-189.938224,0.0002,2]
[322848091,1713402645921,-189.938224,0.0002,2]
[322848092,1713402645931,-189.938224,0.0002,2]
[322848093,1713402645941,-1077.421968,0.0002,2]
[322848094,1713402645950,-1077.421968,0.0002,2]
[322848095,1713402645960,-189.938224,0.0002,2]
[322848096,1713402645969,-1077.421968,0.0002,2]
[322848097,1713402645978,-189.938224,0.0002,2]
[322848098,1713402645988,-1077.421968,0.0002,2]
[322848099,1713402645998,-1077.421968,0.0002,2]
[322848100,1713402646007,-1077.421968,0.0002,2]
[322848101,1713402646017,-151.0,0.0002,2]
[322848102,1713402646027,-1077.421968,0.0002,2]
[322848103,1713402646038,-151.0,0.0002,2]
[322848104,1713402646048,-1077.421968,0.0002,2]
[322848105,1713402646058,-151.0,0.0002,2]
[322848106,1713402646067,-151.0,0.0002,2]
[322848107,1713402646077,-151.0,0.0002,2]
[322848108,1713402646087,-151.0,0.0002,2]
[322848109,1713402646097,-151.0,0.0002,2]
[322848110,1713402646107,-151.0,0.0002,2]
[322848111,1713402646117,-187.562202,0.0002,2]
[322848112,1713402646127,-187.562202,0.0002,2]
[322848113,1713402646138,-187.562202,0.0002,2]
[322848114,1713402646148,-187.562202,0.0002,2]
[322848115,1713402646158,-187.562202,0.0002,2]
[322848116,1713402646169,-187.562202,0.0002,2]
[322848117,1713402646178,-187.562202,0.0002,2]
[322848118,1713402646189,-187.562202,0.0002,2]
[322848119,1713402646199,-151.0,0.0002,2]
[322848120,1713402646210,-151.0,0.0002,2]
[322848121,1713402646220,-151.0,0.0002,2]
[322848122,1713402646229,-169.564731,0.0002,2]
[322848123,1713402646238,-151.0,0.0002,2]
[322848124,1713402646248,-151.0,0.0002,2]
[322848125,1713402646258,-151.0,0.0002,2]
[322848126,1713402646268,-151.0,0.0002,2]
[322848127,1713402646278,-151.0,0.0002,2]
[322848128,1713402646290,-151.0,0.0002,2]
[322848129,1713402646301,-151.0,0.0002,2]
[322848130,1713402646310,-151.0,0.0002,2]
[322848131,1713402646320,-151.0,0.00020008,2]
[322848132,1713402646330,-163.58342,0.00020008,2]
[322848133,1713402646339,-180.68197,0.00020008,2]
[322848134,1713402646349,-151.0,0.00020008,2]
[322848135,1713402646358,-151.0,0.00020008,2]
[322848136,1713402646368,-151.0,0.00020008,2]
[322848137,1713402646379,-151.0,0.00020008,2]
[322848138,1713402646388,-212.055678,0.00020008,2]
[322848139,1713402646399,-212.055678,0.00020008,2]
[322848140,1713402646409,-151.0,0.00020008,2]
[322848141,1713402646419,-151.0,0.00020008,2]
[322848142,1713402646429,-151.0,0.00020008,2]
[322848143,1713402646439,-647.577949,0.00020008,2]
[322848144,1713402646449,-647.577949,0.00020008,2]
[322848145,1713402646459,-151.0,0.00020008,2]
[322848146,1713402646470,-532.478645,0.00020008,2]
[322848147,1713402646481,-532.478645,0.00020008,2]
[322848148,1713402646492,-151.0,0.00020008,2]
[322848149,1713402646502,-151.0,0.00020008,2]
[322848150,1713402646512,-151.0,0.00020008,2]
[322848151,1713402646522,-151.0,0.00020008,2]
[322848152,1713402646535,-172.719066,0.00020008,2]
[322848153,1713402646545,-192.398567,0.00020008,2]
[322848154,1713402646556,-151.0,0.00020008,2]
[322848155,1713402646568,-192.398567,0.00020008,2]
[322848156,1713402646577,-1667.260497,0.00020008,2]
[322848157,1713402646589,-1667.260497,0.00020008,2]
[322848158,1713402646598,-151.0,0.00020008,2]
[322848159,1713402646609,-294.583452,0.00020008,2]
[322848160,1713402646619,-294.583452,0.00020008,2]
[322848161,1713402646629,-151.0,0.00020008,2]
[322848162,1713402646639,-151.0,0.00020008,2]
[322848163,1713402646649,-248.01312,0.00020008,2]
[322848164,1713402646660,-248.01312,0.00020008,2]
[322848165,1713402646670,-151.0,0.00020008,2]
[322848166,1713402646680,-213.269198,0.00020008,2]
[322848167,1713402646690,-213.269198,0.00020008,2]
[322848168,1713402646700,-182.67832,0.00020008,2]
[322848169,1713402646710,-182.67832,0.00020008,2]
[322848170,1713402646721,-173.761411,0.00020008,2]
[322848171,1713402646731,-173.761411,0.00020008,2]
[322848172,1713402646741,-189.938224,0.00020008,2]
[322848173,1713402646752,-189.938224,0.00020008,2]
[322848174,1713402646762,-1077.421968,0.00020008,2]
[322848175,1713402646772,-1077.421968,0.00020008,2]
[322848176,1713402646782,-151.0,0.00020008,2]
[322848177,1713402646796,-151.0,0.00020008,2]
[322848178,1713402646807,-187.562202,0.00020008,2]
[322848179,1713402646817,-187.562202,0.00020008,2]
[322848180,1713402646827,-151.0,0.00020008,2]
[322848181,1713402646837,-754.37085141,0.00020008,2]
[322848182,1713402646847,-154.45931987,0.00020042,2]
[322848183,1713402646857,-754.37085141,0.0002012,2]
[322848184,1713402646867,-151.0,0.0002012,2]
[322848185,1713402646876,-151.0,0.0002012,2]
[322848186,1713402646885,-532.478645,0.0002012,2]
[322848187,1713402646896,-532.478645,0.0002012,2]
[322848188,1713402646905,-151.0,0.0002012,2]
[322848189,1713402646915,-151.0,0.0002012,2]
[322848190,1713402646925,-298.104737,0.0002012,2]
[322848191,1713402646935,-151.0,0.0002012,2]
[322848192,1713402646944,-192.398567,0.0002012,2]
[322848193,1713402646954,-151.0,0.0002012,2]
[322848194,1713402646964,-192.398567,0.0002012,2]
[322848195,1713402646974,-1667.260497,0.0002012,2]
[322848196,1713402646984,-1667.260497,0.0002012,2]
[322848197,1713402646994,-151.0,0.0002012,2]
[322848198,1713402647004,-294.583452,0.0002012,2]
[322848199,1713402647014,-294.583452,0.0002012,2]
[322848200,1713402647024,-151.0,0.0002012,2]
[322848201,1713402647037,-151.0,0.0002012,2]
[322848202,1713402647048,-248.01312,0.0002012,2]
[322848203,1713402647058,-248.01312,0.0002012,2]
[322848204,1713402647069,-151.0,0.0002012,2]
[322848205,1713402647080,-213.269198,0.0002012,2]
[322848206,1713402647090,-213.269198,0.0002012,2]
[322848207,1713402647100,-182.67832,0.0002012,2]
[322848208,1713402647110,-182.67832,0.0002012,2]
[322848209,1713402647120,-173.761411,0.0002012,2]
[322848210,1713402647130,-173.761411,0.0002012,2]
[322848211,1713402647139,-189.938224,0.0002012,2]
[322848212,1713402647149,-1077.421968,0.0002012,2]
[322848213,1713402647159,-189.938224,0.0002012,2]
[322848214,1713402647170,-1077.421968,0.0002012,2]
[322848215,1713402647180,-151.0,0.0002012,2]
[322848216,1713402647190,-151.0,0.0002012,2]
[322848217,1713402647202,-187.562202,0.0002012,2]
[322848218,1713402647213,-187.562202,0.0002012,2]
[322848219,1713402647223,-1363.95444933,0.00020121,2]
[322848220,1713402647234,-154.45931987,0.00020185,2]
[322848221,1713402647243,-287.14,0.000202,2]
[322848222,1713402647253,-287.14,0.000202,2]
[322848223,1713402647262,-151.0,0.000202,2]
[322848224,1713402647271,-151.0,0.000202,2]
[322848225,1713402647281,-172.995786,0.000202,2]
[322848226,1713402647293,-151.0,0.000202,2]
[322848227,1713402647303,-212.055678,0.000202,2]
[322848228,1713402647463,-212.055678,0.000202,2]
[322848229,1713402647473,-151.0,0.000202,2]
[322848230,1713402647483,-151.0,0.000202,2]
[322848231,1713402647493,-647.577949,0.000202,2]
[322848232,1713402647503,-647.577949,0.000202,2]
[322848233,1713402647514,-1493.09554484,0.000202,2]
[322848234,1713402647525,-753.80896144,0.000202,2]
[322848235,1713402647536,-2084.14623357,0.000202,2]
[322848236,1713402647546,-6286.21163282,0.000202,2]
[322848237,1713402647556,-151.0,0.000202,2]
[322848238,1713402647567,-185.578431,0.00020231,2]
[322848239,1713402647577,-532.478645,0.00020231,2]
[322848240,1713402647588,-532.478645,0.00020231,2]
[322848241,1713402647599,-151.0,0.00020231,2]
[322848242,1713402647609,-151.0,0.00020231,2]
[322848243,1713402647619,-151.0,0.00020231,2]
[322848244,1713402647628,-192.398567,0.00020231,2]
[322848245,1713402647638,-151.0,0.00020231,2]
[322848246,1713402647649,-192.398567,0.00020231,2]
[322848247,1713402647659,-1667.260497,0.00020231,2]
[322848248,1713402647669,-1667.260497,0.00020231,2]
[322848249,1713402647679,-151.0,0.00020231,2]
[322848250,1713402647690,-294.583452,0.00020231,2]
[322848251,1713402647700,-294.583452,0.00020231,2]
[322848252,1713402647710,-166.133266,0.00020231,2]
[322848253,1713402647720,-151.0,0.00020231,2]
[322848254,1713402647731,-248.01312,0.00020231,2]
[322848255,1713402647741,-248.01312,0.00020231,2]
[322848256,1713402647751,-151.0,0.00020231,2]
[322848257,1713402647760,-213.269198,0.00020231,2]
[322848258,1713402647770,-213.269198,0.00020231,2]
[322848259,1713402647780,-182.67832,0.00020231,2]
[322848260,1713402647792,-182.67832,0.00020231,2]
[322848261,1713402647802,-173.761411,0.00020231,2]
[322848262,1713402647811,-173.761411,0.00020231,2]
[322848263,1713402647822,-189.938224,0.00020231,2]
[322848264,1713402647831,-1077.421968,0.00020231,2]
[322848265,1713402647841,-189.938224,0.00020231,2]
[322848266,1713402647851,-1077.421968,0.00020231,2]
[322848267,1713402647860,-151.0,0.00020231,2]
[322848268,1713402647869,-151.0,0.00020231,2]
[322848269,1713402647879,-187.562202,0.00020231,2]
[322848270,1713402647889,-187.562202,0.00020231,2]
[322848271,1713402647898,-154.98194736,0.00020231,2]
[322848272,1713402647907,-754.37085141,0.00020231,2]
[322848273,1713402647916,-329.0,0.0002024,2]
[322848274,1713402647926,-500.0,0.00020299,2]
[322848275,1713402647935,-500.0,0.00020299,2]
[322848276,1713402647944,-500.0,0.00020299,2]
[322848277,1713402647954,-727637.22074,0.000203,2]
[322848278,1713402647963,-339.7704,0.000203,2]
[322848279,1713402647973,-287.14,0.000203,2]
[322848280,1713402647982,-287.14,0.000203,2]
[322848281,1713402647994,-151.0,0.000203,2]
[322848282,1713402648003,-212.055678,0.000203,2]
[322848283,1713402648012,-212.055678,0.000203,2]
[322848284,1713402648022,-151.0,0.000203,2]
[322848285,1713402648031,-236.541578,0.000203,2]
[322848286,1713402648043,-647.577949,0.000203,2]
[322848287,1713402648052,-647.577949,0.000203,2]
[322848288,1713402648061,-532.478645,0.000203,2]
[322848289,1713402648070,-532.478645,0.000203,2]
[322848290,1713402648079,-151.0,0.000203,2]
[322848291,1713402648089,-151.0,0.000203,2]
[322848292,1713402648098,-151.0,0.000203,2]
[322848293,1713402648108,-192.398567,0.000203,2]
[322848294,1713402648117,-192.398567,0.000203,2]
[322848295,1713402648126,-1667.260497,0.000203,2]
[322848296,1713402648135,-1667.260497,0.000203,2]
[322848297,1713402648144,-3800.0,0.000203,7]
[322848298,1713402648153,-151.0,0.000203,2]
[322848299,1713402648162,-294.583452,0.000203,2]
[322848300,1713402648171,-294.583452,0.000203,2]
[322848301,1713402648181,-151.0,0.000203,2]
[322848302,1713402648190,-248.01312,0.000203,2]
[322848303,1713402648200,-248.01312,0.000203,2]
[322848304,1713402648209,-151.0,0.000203,2]
[322848305,1713402648218,-213.269198,0.000203,2]
[322848306,1713402648227,-213.269198,0.000203,2]
[322848307,1713402648236,-182.67832,0.000203,2]
[322848308,1713402648246,-182.67832,0.000203,2]
[322848309,1713402648255,-173.761411,0.000203,2]
[322848310,1713402648264,-173.761411,0.000203,2]
[322848311,1713402648273,-189.938224,0.000203,2]
[322848312,1713402648282,-1077.421968,0.000203,2]
[322848313,1713402648293,-189.938224,0.000203,2]
[322848314,1713402648302,-1077.421968,0.000203,2]
[322848315,1713402648311,-151.0,0.000203,2]
[322848316,1713402648321,-151.0,0.000203,2]
[322848317,1713402648330,-187.562202,0.000203,2]
[322848318,1713402648339,-187.562202,0.000203,2]
[322848319,1713402648349,-154.45931987,0.00020328,2]
[322848320,1713402648358,-754.37085141,0.00020343,2]
[322848321,1713402648367,-532.478645,0.00020355,2]
[322848322,1713402648377,-532.478637,0.00020355,2]
[322848323,1713402648386,-151.0,0.00020355,2]
[322848324,1713402648395,-207.379802,0.00020355,2]
[322848325,1713402648407,-151.0,0.00020355,2]
[322848326,1713402648416,-192.398567,0.00020355,2]
[322848327,1713402648427,-192.398572,0.00020355,2]
[322848328,1713402648437,-1667.260497,0.00020355,2]
[322848329,1713402648448,-1667.260502,0.00020355,2]
[322848330,1713402648458,-151.0,0.00020355,2]
[322848331,1713402648468,-294.583452,0.00020355,2]
[322848332,1713402648479,-294.583456,0.00020355,2]
[322848333,1713402648489,-151.0,0.00020355,2]
[322848334,1713402648499,-248.01312,0.00020355,2]
[322848335,1713402648510,-248.013112,0.00020355,2]
[322848336,1713402648521,-151.0,0.00020355,2]
[322848337,1713402648532,-213.269198,0.00020355,2]
[322848338,1713402648544,-213.269205,0.00020355,2]
[322848339,1713402648555,-182.67832,0.00020355,2]
[322848340,1713402648564,-182.678326,0.00020355,2]
[322848341,1713402648574,-173.761411,0.00020355,2]
[322848342,1713402648584,-173.761414,0.00020355,2]
[322848343,1713402648594,-189.938224,0.00020355,2]
[322848344,1713402648604,-1077.421968,0.00020355,2]
[322848345,1713402648615,-189.938231,0.00020355,2]
[322848346,1713402648625,-1077.421968,0.00020355,2]
[322848347,1713402648635,-151.0,0.00020355,2]
[322848348,1713402648645,-215.00916,0.00020355,2]
[322848349,1713402648655,-187.562202,0.00020355,2]
[322848350,1713402648666,-187.562198,0.00020355,2]
[322848351,1713402648676,-151.0,0.00020375,2]
[322848352,1713402648685,-212.055678,0.00020375,2]
[322848353,1713402648695,-212.055678,0.00020375,2]
[322848354,1713402648704,-151.0,0.00020375,2]
[322848355,1713402648714,-753.80896142,0.00020375,3]
[322848356,1713402648723,-647.577949,0.0002039,2]
[322848357,1713402648732,-647.577949,0.0002039,2]
[322848358,1713402648744,-37622.11570607,0.000204,2]
[322848359,1713402648753,-287.14,0.000204,2]
[322848360,1713402648762,-287.14,0.000204,2]
[322848361,1713402648771,-151.0,0.000204,2]
[322848362,1713402648781,-212.055678,0.000204,2]
[322848363,1713402648792,-212.055678,0.000204,2]
[322848364,1713402648802,-151.0,0.000204,2]
[322848365,1713402648811,-647.577949,0.000204,2]
[322848366,1713402648821,-647.57795,0.000204,2]
[322848367,1713402648830,-700.0,0.000204,7]
[322848368,1713402648840,-600.0,0.0002041,2]
[322848369,1713402648849,-754.37085141,0.00020454,2]
[322848370,1713402648859,-154.45931987,0.00020471,2]
[322848371,1713402648868,-500.0,0.00020471,2]
[322848372,1713402648877,-150.0,0.000205,2]
[322848373,1713402648886,-700.0,0.000205,7]
[322848374,1713402648896,-2134.71,0.00020502,6]
[322848375,1713402648905,-287.14,0.0002055,2]
[322848376,1713402648914,-287.14,0.0002055,2]
[322848377,1713402648923,-1493.09554483,0.0002055,2]
[322848378,1713402648933,-753.80896142,0.0002055,3]
[322848379,1713402648942,-2084.14623357,0.0002055,2]
[322848380,1713402648951,-6286.21163281,0.0002055,2]
[322848381,1713402648961,-154.98194736,0.00020566,2]
[322848382,1713402648970,-754.37085141,0.00020566,2]
[322848383,1713402648980,-150.0,0.00020575,2]
[322848384,1713402648989,-10000.0,0.00020592,2]
[322848385,1713402648998,-700.0,0.000206,7]
[322848386,1713402649007,-154.45931987,0.00020614,2]
[322848387,1713402649016,-1001.14030142,0.00020624,2]
[322848388,1713402649026,-754.37085141,0.00020677,2]
[322848389,1713402649038,-700.0,0.000207,7]
[322848390,1713402649047,-150.0,0.00020711,2]
[322848391,1713402649056,-753.80896142,0.00020725,3]
[322848392,1713402649065,-303.15770896,0.00020728,2]
[322848393,1713402649074,-150.0,0.0002073,2]
[322848394,1713402649083,-300.0,0.00020731,2]
[322848395,1713402649092,-150.0,0.00020732,2]
[322848396,1713402649101,-1250.09555257,0.00020739,2]
[322848397,1713402649110,-287.14,0.00020739,2]
[322848398,1713402649119,-287.14,0.00020739,2]
[322848399,1713402649128,-154.45931987,0.00020757,2]
[322848400,1713402649137,-5542.50832038,0.00020759,2]
[322848401,1713402649147,-150.0,0.00020771,2]
[322848402,1713402649156,-300.0,0.00020774,2]
[322848403,1713402649165,-150.0,0.00020788,2]
[322848404,1713402649175,-754.37085141,0.00020789,2]
[322848405,1713402649184,-150.0,0.00020793,2]
[322848406,1713402649193,-5000.0,0.000208,2]
[322848407,1713402649202,-3486.22205918,0.000208,2]
[322848408,1713402649211,-150.0,0.000208,2]
[322848409,1713402649220,-1218.0,0.000208,7]
[322848410,1713402649229,-150.0,0.00020802,2]
[322848411,1713402649238,-300.0,0.0002081,2]
[322848412,1713402649247,-150.0,0.00020817,2]
[322848413,1713402649256,-287.14,0.00020818,2]
[322848414,1713402649265,-287.14,0.00020818,2]
[322848415,1713402649274,-150.0,0.0002082,2]
[322848416,1713402649287,-300.0,0.00020824,2]
[322848417,1713402649296,-150.0,0.00020826,2]
[322848418,1713402649305,-300.0,0.0002083,2]
[322848419,1713402649314,-150.0,0.00020842,2]
[322848420,1713402649323,-300.0,0.00020847,2]
[322848421,1713402649332,-150.0,0.00020863,2]
[322848422,1713402649341,-150.0,0.00020864,2]
[322848423,1713402649350,-300.0,0.00020866,2]
[322848424,1713402649359,-150.0,0.00020878,2]
[322848425,1713402649368,-300.0,0.00020878,2]
[322848426,1713402649377,-150.0,0.00020882,2]
[322848427,1713402649386,-150.0,0.00020883,2]
[322848428,1713402649395,-150.0,0.00020889,2]
[322848429,1713402649405,-8885.24802593,0.000209,2]
[322848430,1713402649415,-154.98194736,0.000209,2]
[322848431,1713402649424,-154.45931987,0.000209,2]
[322848432,1713402649433,-312.27117888,0.000209,2]
[322848433,1713402649443,-1493.09554483,0.000209,2]
[322848434,1713402649452,-753.80896142,0.000209,3]
[322848435,1713402649462,-2084.14623357,0.000209,2]
[322848436,1713402649471,-6286.21163281,0.000209,2]
[322848437,1713402649481,-16949.0,0.000209,5]
[322848438,1713402649490,-754.37085141,0.000209,2]
[322848439,1713402649499,-150.0,0.00020905,2]
[322848440,1713402649509,-150.0,0.0002091,2]
[322848441,1713402649520,-150.0,0.00020923,2]
[322848442,1713402649529,-300.0,0.00020925,2]
[322848443,1713402649541,-150.0,0.00020927,2]
[322848444,1713402649551,-150.0,0.00020929,2]
[322848445,1713402649560,-300.0,0.00020931,2]
[322848446,1713402649569,-150.0,0.00020932,2]
[322848447,1713402649578,-150.0,0.00020934,2]
[322848448,1713402649588,-150.0,0.00020935,2]
[322848449,1713402649597,-300.0,0.00020938,2]
[322848450,1713402649607,-150.0,0.0002094,2]
[322848451,1713402649617,-10000.0,0.00020942,2]
[322848452,1713402649628,-300.0,0.00020942,2]
[322848453,1713402649639,-150.0,0.00020948,2]
[322848454,1713402649648,-150.0,0.00020955,2]
[322848455,1713402649658,-600.0,0.00020958,2]
[322848456,1713402649667,-150.0,0.00020962,2]
[322848457,1713402649676,-150.0,0.00020967,2]
[322848458,1713402649685,-300.0,0.00020974,2]
[322848459,1713402649695,-751.98896626,0.0002098,2]
[322848460,1713402649704,-7587.63809557,0.00020981,2]
[322848461,1713402649713,-500.0,0.00020985,2]
[322848462,1713402649865,-26607.3938271,0.00020986,2]
[322848463,1713402649875,-22244.789229,0.00020986,2]
[322848464,1713402649885,-1620.1281213,0.00020986,2]
[322848465,1713402649894,-1354.4884861,0.00020986,2]
[322848466,1713402649903,-645.1276746,0.00020986,2]
[322848467,1713402649912,-539.3511759,0.00020986,2]
[322848468,1713402649921,-5078.609803,0.00020986,2]
[322848469,1713402649930,-4245.9101924,0.00020986,2]
[322848470,1713402649940,-7544.3399671,0.00020986,2]
[322848471,1713402649949,-6330.4871917,0.00020986,2]
[322848472,1713402649958,-1601.794458,0.00020986,2]
[322848473,1713402649968,-1345.2542121,0.00020986,2]
[322848474,1713402649977,-150.0,0.00020987,2]
[322848475,1713402649986,-300.0,0.00020987,2]
[322848476,1713402649996,-150.0,0.00020988,2]
[322848477,1713402650006,-5300.0,0.0002099,8]
[322848478,1713402650015,-5300.0,0.0002099,9]
[322848479,1713402650024,-300.0,0.00020992,2]
[322848480,1713402650034,-476.42758474,0.00020997,2]
[322848481,1713402650044,-5357.36156544,0.00020998,2]
[322848482,1713402650053,-2355.59207324,0.00020998,2]
[322848483,1713402650062,-155.0,0.00020998,2]
[322848484,1713402650072,-6334.44845532,0.00020998,2]
[322848485,1713402650081,-157.21892996,0.00020998,2]
[322848486,1713402650091,-155.0,0.00020998,2]
[322848487,1713402650101,-500.0,0.00020998,2]
[322848488,1713402650110,-221698.07911853,0.00020999,2]
[322848489,1713402650119,-63614.69024772,0.00020999,2]
[322848490,1713402650129,-38269.65671745,0.00020999,2]
[322848491,1713402650137,-150.0,0.00020999,2]
[322848492,1713402650146,-12147.44589705,0.00020999,2]
[322848493,1713402650155,-610.9695,0.00020999,2]
[322848494,1713402650165,-516.97,0.00020999,2]
[322848495,1713402650174,-1264.8628919,0.00021,3]
[322848496,1713402650183,-604765.49643367,0.00021,2]
[322848497,1713402650192,-4212804.38696614,0.00021,2]
[322848498,1713402650202,-196931.73360809,0.00021,2]
[322848499,1713402650211,-328268.60746488,0.00021,2]
[322848500,1713402650220,-612691.90734369,0.00021,2]
[322848501,1713402650230,-238414.25194056,0.00021,2]
[322848502,1713402650239,-339841.48645742,0.00021,2]
[322848503,1713402650248,-142385.29156183,0.00021,2]
[322848504,1713402650256,-6111059.50448914,0.00021,2]
[322848505,1713402650266,-122274.222873,0.00021,2]
[322848506,1713402650275,-247105.62594592,0.00021,2]
[322848507,1713402650285,-702387.19535505,0.00021,2]
[322848508,1713402650294,-1302366.47823994,0.00021,2]
[322848509,1713402650302,-637712.24673931,0.00021,2]
[322848510,1713402650311,-150040.70785457,0.00021,2]
[322848511,1713402650320,-1087224.14924425,0.00021,2]
[322848512,1713402650330,-3109851.95861897,0.00021,2]
[322848513,1713402650876,-252.4506725,0.00021,2]
[322848514,1713402650926,-1199.99781213,0.00021,2]
[322848515,1713402652908,-2192.96638495,0.00019998,2]
[322848516,1713402652918,-265.46132708,0.00021,2]
[322848517,1713402997319,299.56701482,0.000283,120]